bitfinex/quotes_SOLUSD_20251106
["timestamp","ask_amount","ask_price","bid_price","bid_amount"]
[1762462888518,1e-08,155.87,155.86,14.90096241]
[1762462888717,1e-08,155.87,155.86,23.01591045]
[1762462889508,1e-08,155.87,155.86,14.90096241]
[1762462889914,1e-08,155.87,155.86,6.78601437]
[1762462890109,1e-08,155.87,155.86,35.49296241]
[1762462890429,1e-08,155.87,155.86,14.90096241]
[1762462891006,1e-08,155.87,155.86,22.29096241]
[1762462891332,1e-08,155.87,155.86,14.53096241]
[1762462891645,0.71000001,155.87,155.85,8.11494804]
[1762462892029,0.71000001,155.87,155.86,20.592]
[1762462892336,0.71000001,155.87,155.83,5.14367192]
[1762462892509,0.71000001,155.87,155.83,32.15292148]
[1762462892707,14.93249961,155.86,155.81,5.14367192]
[1762462892913,9.78882769,155.84,155.8,5.14367192]
[1762462893128,14.93249961,155.84,155.79,5.14367192]
[1762462893432,9.78882769,155.82,155.78,6.41930928]
[1762462893611,9.78882769,155.82,155.78,11.5629812]
[1762462893814,0.71,155.81,155.8,20.592]
[1762462894022,0.71,155.81,155.8,27.01048523]
[1762462894610,0.71,155.81,155.8,32.15415715]
[1762462895028,0.71,155.81,155.8,27.01048523]
[1762462895237,0.71,155.81,155.8,20.592]
[1762462895445,0.71,155.81,155.79,32.1544752]
[1762462895618,10.49882769,155.84,155.8,5.14367192]
[1762462895936,0.71,155.83,155.81,5.14367192]
[1762462896134,0.71,155.83,155.81,11.56143717]
[1762462901031,0.71,155.83,155.8,11.56207745]
[1762462902334,0.71,155.83,155.81,5.14367192]
[1762462903143,0.71,155.83,155.8,6.41840553]
[1762462903445,14.93249961,155.82,155.77,5.14367192]
[1762462903643,14.93249961,155.8,155.75,5.14367192]
[1762462903840,9.78882769,155.76,155.65,0.2]
[1762462904048,9.78882769,155.76,155.73,5.14367192]
[1762462904291,0.72,155.75,155.74,6.420958]
[1762462905825,0.72,155.75,155.73,11.56500251]
[1762462906429,0.72,155.75,155.73,6.42133059]
[1762462906930,0.72,155.75,155.73,11.56500251]
[1762462908036,10.50882769,155.78,155.74,5.14367192]
[1762462908237,6.41697848,155.84,155.77,5.14367192]
[1762462908458,5.86367192,155.86,155.8,5.14367192]
[1762462908778,8.44,155.85,155.82,5.14367192]
[1762462908968,8.44,155.85,155.83,5.14367192]
[1762462909468,0.72,155.84,155.83,5.14367192]
[1762462909868,0.72,155.84,155.83,11.56092148]
[1762462910161,0.72,155.84,155.83,6.41724956]
[1762462910667,0.72,155.84,155.83,11.56092148]
[1762462910965,9.78882769,155.83,155.82,6.41757419]
[1762462911142,9.78882769,155.83,155.81,6.41797898]
[1762462911341,0.72,155.82,155.81,6.41797898]
[1762462911544,0.72,155.82,155.81,11.5616509]
[1762462911740,0.72,155.82,155.79,5.14367192]
[1762462912142,9.78882769,155.8,155.77,5.14367192]
[1762462912337,5.14367192,155.84,155.79,5.14367192]
[1762462912558,0.72,155.83,155.8,5.14367192]
[1762462913747,0.72,155.83,155.81,6.41807329]
[1762462914061,9.78882769,155.82,155.8,6.41837912]
[1762462914259,0.72,155.83,155.8,11.56205104]
[1762462914462,0.72,155.82,155.8,11.56205104]
[1762462915076,0.72,155.82,155.79,5.14367192]
[1762462915480,14.93249961,155.81,155.77,6.41972138]
[1762462915687,7.72,155.8,155.76,5.14367192]
[1762462915869,9.78882769,155.79,155.75,11.564163]
[1762462916185,10.50882769,155.79,155.76,5.14367192]
[1762462916380,0.72,155.78,155.76,5.14367192]
[1762462916588,9.78882769,155.77,155.74,20.592]
[1762462916754,9.78882769,155.77,155.69,0.37]
[1762462917089,10.50882769,155.76,155.75,5.0]
[1762462918967,10.50882769,155.76,155.75,11.42054574]
[1762462919161,10.50882769,155.76,155.75,5.0]
[1762462919654,18.22882769,155.76,155.75,5.0]
[1762462920062,23.37249961,155.76,155.75,5.0]
[1762462920265,18.22882769,155.76,155.75,5.0]
[1762462920680,29.79263314,155.76,155.75,5.0]
[1762462920880,29.79263314,155.76,155.75,3.56]
[1762462921383,9.78882769,155.72,155.65,0.2]
[1762462921672,9.78882769,155.7,155.65,0.2]
[1762462921976,7.72,155.69,155.66,5.14367192]
[1762462922291,5.14367192,155.67,155.65,0.2]
[1762462922653,17.50882769,155.66,155.65,0.2]
[1762462922874,18.22882769,155.66,155.65,0.2]
[1762462923177,23.37249961,155.66,155.65,0.2]
[1762462923554,18.22882769,155.66,155.65,0.2]
[1762462923757,23.37249961,155.66,155.65,0.2]
[1762462924350,17.50882769,155.66,155.65,0.2]
[1762462924682,7.72,155.66,155.65,6.62467073]
[1762462925060,7.72,155.66,155.65,0.2]
[1762462925273,23.37249961,155.66,155.65,0.2]
[1762462926280,29.7967576,155.66,155.65,0.2]
[1762462926982,9.78882769,155.65,155.53,5.82367192]
[1762462927181,5.14367192,155.59,155.56,20.592]
[1762462927358,7.72,155.58,155.56,20.592]
[1762462927976,12.86367192,155.58,155.56,27.02026212]
[1762462928188,14.93249961,155.57,155.52,6.42977166]
[1762462928386,14.93249961,155.57,155.52,22.50487454]
[1762462928578,14.93249961,155.57,155.53,0.68]
[1762462929188,7.72,155.56,155.53,5.82367192]
[1762462929357,7.72,155.56,155.53,5.14367192]
[1762462929559,7.72,155.56,155.52,6.42977166]
[1762462929880,7.72,155.56,155.53,0.68]
[1762462930083,7.72,155.56,155.53,7.10946025]
[1762462930581,7.72,155.56,155.54,5.82367192]
[1762462930774,7.72,155.57,155.55,5.14367192]
[1762462931157,7.72,155.57,155.54,5.14367192]
[1762462931385,7.72,155.57,155.54,5.82367192]
[1762462931676,7.72,155.57,155.53,43.09552956]
[1762462931882,7.72,155.57,155.54,0.68]
[1762462932072,7.72,155.57,155.55,6.42880102]
[1762462932384,7.72,155.59,155.55,27.64447551]
[1762462932557,5.14367192,155.66,155.58,5.14367192]
[1762462932757,17.50882769,155.65,155.59,0.68]
[1762462932958,5.14367192,155.61,155.58,20.592]
[1762462933187,7.72,155.6,155.58,20.592]
[1762462933500,7.72,155.59,155.58,20.592]
[1762462933664,13.58367192,155.59,155.55,27.02080102]
[1762462933863,7.72,155.59,155.55,27.02080102]
[1762462934081,7.72,155.59,155.57,6.42797454]
[1762462935263,7.72,155.59,155.58,0.68]
[1762462935666,5.86367192,155.64,155.58,0.68]
[1762462935965,17.50882769,155.63,155.58,5.82367192]
[1762462936165,17.50882769,155.63,155.59,6.42714827]
[1762462936379,7.72,155.63,155.6,5.14367192]
[1762462936590,7.72,155.63,155.61,5.14367192]
[1762462936779,7.72,155.63,155.61,5.82367192]
[1762462937085,7.72,155.63,155.62,0.68]
[1762462937284,0.80272283,155.72,155.62,0.68]
[1762462937285,5.14367192,155.7,155.62,26.41567192]
[1762462937471,7.14205206,155.72,155.65,5.14367192]
[1762462937472,7.72,155.69,155.65,5.14367192]
[1762462937667,5.14367192,155.68,155.64,20.592]
[1762462937883,7.72,155.69,155.65,5.14367192]
[1762462938055,7.72,155.69,155.66,5.14367192]
[1762462938256,7.72,155.69,155.67,6.42384531]
[1762462938461,7.72,155.69,155.67,7.10384531]
[1762462938682,7.72,155.69,155.65,6.42467073]
[1762462938874,14.93249961,155.68,155.65,6.42467073]
[1762462939260,9.78882769,155.68,155.65,6.42467073]
[1762462939485,5.14367192,155.67,155.64,20.592]
[1762462939662,9.78882769,155.68,155.64,27.01695368]
[1762462939862,7.72,155.69,155.64,48.90333441]
[1762462940088,7.72,155.69,155.65,0.68]
[1762462940384,7.72,155.69,155.66,22.48490298]
[1762462940578,7.72,155.69,155.67,5.82367192]
[1762462941185,7.72,155.69,155.68,5.14367192]
[1762462941372,7.72,155.69,155.67,5.82367192]
[1762462941577,7.72,155.69,155.67,5.14367192]
[1762462941871,7.72,155.69,155.68,20.592]
[1762462942280,9.78882769,155.68,155.61,0.68]
[1762462942464,5.14367192,155.67,155.62,5.14367192]
[1762462942671,9.78882769,155.68,155.64,5.14367192]
[1762462942865,9.78882769,155.68,155.63,20.592]
[1762462942866,5.14367192,155.68,155.63,20.592]
[1762462943169,5.14367192,155.64,155.56,12.2920237]
[1762462943384,9.78882769,155.6,155.56,27.74035178]
[1762462943774,5.14367192,155.62,155.57,5.14367192]
[1762462944092,9.78882769,155.62,155.58,5.14367192]
[1762462944312,5.14367192,155.61,155.58,6.42756138]
[1762462944478,9.78882769,155.62,155.58,12.2912333]
[1762462944679,9.78882769,155.62,155.58,28.36013675]
[1762462944882,14.93249961,155.62,155.58,23.21646483]
[1762462945079,9.78882769,155.62,155.58,27.64013675]
[1762462945702,9.78882769,155.62,155.58,11.5712333]
[1762462946093,9.78882769,155.62,155.58,27.64013675]
[1762462946265,9.78882769,155.62,155.58,6.42756138]
[1762462946466,15.58249961,155.62,155.58,6.42756138]
[1762462947191,14.93249961,155.62,155.58,22.49646483]
[1762462947696,9.78882769,155.62,155.58,27.64013675]
[1762462947907,9.78882769,155.62,155.58,28.36013675]
[1762462948106,12.86367192,155.63,155.58,27.64013675]
[1762462948386,7.72,155.65,155.62,27.63435434]
[1762462948690,7.72,155.65,155.63,5.14367192]
[1762462948990,7.72,155.65,155.64,5.14367192]
[1762462949309,7.72,155.65,155.64,5.86367192]
[1762462949492,7.72,155.65,155.64,5.14367192]
[1762462949886,7.72,155.65,155.62,28.35435434]
[1762462950388,7.72,155.65,155.64,32.16075544]
[1762462950774,7.72,155.68,155.64,48.94346425]
[1762462950990,7.72,155.68,155.65,5.14367192]
[1762462952178,7.72,155.69,155.66,5.14367192]
[1762462952377,7.72,155.69,155.67,6.42384531]
[1762462952891,8.37,155.69,155.65,5.14367192]
[1762462953067,8.37,155.69,155.65,6.4245273]
[1762462953493,8.37,155.69,155.65,11.56819922]
[1762462953699,8.37,155.69,155.66,5.14367192]
[1762462953877,7.72,155.69,155.66,5.14367192]
[1762462954393,7.72,155.69,155.66,8.10084188]
[1762462954795,7.72,155.69,155.68,28.69284188]
[1762462955287,0.65,155.74,155.68,29.41284188]
[1762462955486,0.65,155.76,155.72,8.10084188]
[1762462955692,17.50882769,155.75,155.72,8.10084188]
[1762462956294,7.72,155.75,155.73,8.10084188]
[1762462956493,7.72,155.75,155.74,6.420958]
[1762462957593,8.77084188,155.83,155.74,31.25419489]
[1762462957807,0.67,155.83,155.79,8.10084188]
[1762462958104,7.72,155.82,155.81,8.10084188]
[1762462958602,7.72,155.82,155.81,14.51891517]
[1762462958781,7.72,155.82,155.8,8.10084188]
[1762462959379,8.39,155.82,155.78,14.52015116]
[1762462959585,8.39,155.82,155.79,8.10084188]
[1762462960306,7.72,155.82,155.8,8.10084188]
[1762462960624,17.50882769,155.82,155.81,6.41807329]
[1762462961492,17.50882769,155.82,155.79,8.78084188]
[1762462961798,17.50882769,155.82,155.79,15.199646]
[1762462961982,17.50882769,155.82,155.8,8.10084188]
[1762462962376,17.50882769,155.82,155.81,6.41807329]
[1762462962600,17.50882769,155.82,155.8,8.10084188]
[1762462962977,17.50882769,155.82,155.8,14.51926487]
[1762462963182,7.72,155.82,155.81,8.10084188]
[1762462963699,7.72,155.82,155.8,14.51926487]
[1762462964806,7.72,155.82,155.81,14.51891517]
[1762462964996,7.82,155.85,155.81,14.51891517]
[1762462965181,0.1,155.85,155.84,8.10084188]
[1762462965391,0.1,155.85,155.84,8.78084188]
[1762462966510,1e-08,155.87,155.86,28.69284188]
[1762462966680,1e-08,155.87,155.86,35.10885625]
[1762462966876,1e-08,155.87,155.86,35.78885625]
[1762462968591,1e-08,155.87,155.86,28.69284188]
[1762462968987,1e-08,155.87,155.86,35.10885625]
[1762462969396,1e-08,155.87,155.86,27.00801437]
[1762462969886,1e-08,155.87,155.86,35.10885625]
[1762462971110,1e-08,155.87,155.86,27.00801437]
[1762462971317,0.67000001,155.87,155.85,6.41637359]
[1762462971486,1e-08,155.87,155.85,6.41637359]
[1762462971820,1e-08,155.87,155.85,14.51721547]
[1762462972212,7.72000001,155.87,155.84,14.51764879]
[1762462972385,9.78882769,155.85,155.81,8.10084188]
[1762462972708,16.20540934,155.85,155.78,6.41930928]
[1762462973006,9.78882769,155.83,155.79,8.10084188]
[1762462973213,17.50882769,155.83,155.79,8.10084188]
[1762462973507,17.50882769,155.83,155.81,8.10084188]
[1762462974089,17.50882769,155.83,155.8,8.10084188]
[1762462974283,18.16882769,155.83,155.8,8.10084188]
[1762462974486,17.50882769,155.83,155.8,8.10084188]
[1762462974683,18.16882769,155.83,155.8,14.51918045]
[1762462975983,17.50882769,155.83,155.8,14.51918045]
[1762462976188,17.50882769,155.83,155.81,8.10084188]
[1762462976495,7.72,155.83,155.82,8.10084188]
[1762462976689,7.72,155.83,155.81,8.10084188]
[1762462976888,9.78882769,155.82,155.79,8.10084188]
[1762462977089,8.38,155.83,155.8,8.10084188]
[1762462977297,7.72,155.83,155.82,8.10084188]
[1762462977510,7.7,155.84,155.82,8.10084188]
[1762462977820,7.7,155.84,155.83,8.10084188]
[1762462978799,7.7,155.84,155.83,14.51809144]
[1762462978991,9.7888277,155.87,155.83,15.21809144]
[1762462979199,9.78882769,155.85,155.83,15.21809144]
[1762462979485,7.7,155.86,155.84,8.10084188]
[1762462979686,1e-08,155.87,155.85,8.10084188]
[1762462979900,1e-08,155.87,155.86,8.10084188]
[1762462980803,1e-08,155.87,155.86,15.21685625]
[1762462981109,9.78882769,155.86,155.83,8.10084188]
[1762462981325,17.48882769,155.86,155.83,20.592]
[1762462981513,17.48882769,155.86,155.83,28.69284188]
[1762462981712,18.14882769,155.86,155.83,28.69284188]
[1762462981894,18.14882769,155.86,155.83,20.592]
[1762462982207,0.66,155.85,155.83,20.592]
[1762462982417,18.14882769,155.86,155.83,20.592]
[1762462982716,18.14882769,155.86,155.82,14.51827415]
[1762462983597,18.14882769,155.86,155.82,30.56242766]
[1762462984036,17.48882769,155.86,155.83,8.10084188]
[1762462984196,1e-08,155.87,155.85,8.10084188]
[1762462984394,7.7,155.86,155.85,20.592]
[1762462984729,18.14882769,155.86,155.8,8.10084188]
[1762462985029,18.14882769,155.86,155.83,20.592]
[1762462985235,10.44882769,155.85,155.79,6.41889723]
[1762462985405,9.78882769,155.83,155.82,20.592]
[1762462985606,17.48882769,155.83,155.82,20.592]
[1762462985807,17.48882769,155.83,155.77,16.74887388]
[1762462985808,18.14882769,155.83,155.78,8.10084188]
[1762462986003,0.66,155.85,155.81,28.69284188]
[1762462986190,7.7,155.82,155.81,29.39284188]
[1762462987113,7.7,155.86,155.84,20.592]
[1762462987298,17.48882769,155.86,155.85,6.41642605]
[1762462987795,7.7,155.86,155.85,14.51726793]
[1762462987996,1e-08,155.87,155.86,20.592]
[1762462988213,1e-08,155.87,155.86,29.39284188]
[1762462988417,1e-08,155.87,155.86,21.292]
[1762462988614,1e-08,155.87,155.86,28.69284188]
[1762462988993,9.78882769,155.86,155.83,14.51768871]
[1762462989813,9.78882769,155.86,155.82,27.00936272]
[1762462990009,9.78882769,155.84,155.8,8.10084188]
[1762462990210,7.7,155.83,155.79,8.10084188]
[1762462990406,9.78882769,155.82,155.79,8.10084188]
[1762462991003,9.78882769,155.82,155.79,14.51973911]
[1762462991421,9.78882769,155.82,155.78,8.10084188]
[1762462991609,10.44882769,155.82,155.78,8.10084188]
[1762462991808,7.7,155.83,155.81,8.10084188]
[1762462992008,7.7,155.82,155.81,8.10084188]
[1762462992820,9.78882769,155.85,155.81,8.80084188]
[1762462993029,9.78882769,155.85,155.84,6.41683778]
[1762462993030,7.7,155.85,155.84,6.41683778]
[1762462993401,1e-08,155.87,155.84,15.21767966]
[1762462993603,1e-08,155.87,155.86,8.10084188]
[1762462993823,1e-08,155.87,155.86,8.80084188]
[1762462994530,1e-08,155.87,155.86,29.39284188]
[1762462994904,1e-08,155.87,155.86,35.80885625]
[1762462995104,1e-08,155.87,155.86,35.10885625]
[1762462995632,1e-08,155.87,155.86,35.80885625]
[1762462999520,1e-08,155.87,155.83,7.11710873]
[1762462999724,1e-08,155.87,155.83,15.21795061]
[1762462999921,7.70000001,155.87,155.84,8.80084188]
[1762463000119,7.70000001,155.87,155.83,14.51795061]
[1762463000314,8.36000001,155.87,155.83,6.41710873]
[1762463000714,8.36000001,155.87,155.82,8.10084188]
[1762463000913,7.70000001,155.87,155.83,8.80084188]
[1762463001416,7.70000001,155.87,155.84,15.21767966]
[1762463001814,7.70000001,155.87,155.86,8.10084188]
[1762463002429,7.70000001,155.87,155.86,8.80084188]
[1762463002631,1e-08,155.87,155.86,8.80084188]
[1762463003337,1e-08,155.87,155.86,15.21685625]
[1762463004925,1e-08,155.87,155.86,0.7]
[1762463005125,1e-08,155.87,155.86,15.21685625]
[1762463006356,1e-08,155.87,155.85,8.10084188]
[1762463006553,1e-08,155.87,155.85,14.51716081]
[1762463006725,1e-08,155.87,155.86,8.10084188]
[1762463007125,1e-08,155.87,155.85,15.22716081]
[1762463007946,1e-08,155.87,155.84,8.10084188]
[1762463008134,17.48882769,155.86,155.82,8.10084188]
[1762463008747,17.48882769,155.86,155.82,8.81084188]
[1762463009135,17.88966957,155.84,155.78,0.71]
[1762463009368,17.88966957,155.84,155.79,8.10084188]
[1762463009725,9.78882769,155.84,155.8,8.10084188]
[1762463010338,7.7,155.86,155.82,8.10084188]
[1762463010841,7.7,155.86,155.82,8.81084188]
[1762463011042,7.7,155.86,155.83,8.81084188]
[1762463011549,7.7,155.86,155.83,0.71]
[1762463011744,7.7,155.86,155.83,6.41724956]
[1762463012357,7.7,155.86,155.83,7.12724956]
[1762463012538,7.7,155.86,155.83,0.71]
[1762463012853,7.7,155.86,155.82,14.51846951]
[1762463012854,8.10084188,155.84,155.75,8.81084188]
[1762463013069,9.78882769,155.77,155.73,8.10084188]
[1762463013270,7.7,155.76,155.73,8.10084188]
[1762463013560,7.7,155.76,155.75,8.10084188]
[1762463013928,7.7,155.76,155.75,15.23138762]
[1762463014477,7.7,155.76,155.72,20.592]
[1762463014478,7.7,155.76,155.74,6.42092518]
[1762463014765,7.7,155.76,155.74,11.57151478]
[1762463015853,7.7,155.76,155.74,6.42092518]
[1762463017643,7.7,155.76,155.73,0.71]
[1762463017832,7.7,155.76,155.71,5.8205896]
[1762463017833,9.78882769,155.75,155.71,5.8205896]
[1762463018038,7.7,155.76,155.72,11.57237228]
[1762463018343,9.78882769,155.75,155.72,6.42178268]
[1762463018550,9.78882769,155.75,155.7,11.57296866]
[1762463018551,14.93941729,155.75,155.7,11.57296866]
[1762463018960,14.93941729,155.75,155.7,12.24296866]
[1762463019158,9.78882769,155.75,155.7,12.24296866]
[1762463019342,9.78882769,155.75,155.7,11.57296866]
[1762463019658,9.78882769,155.75,155.72,5.1505896]
[1762463019834,9.78882769,155.75,155.72,6.42178268]
[1762463020736,14.93941729,155.75,155.72,6.42178268]
[1762463021858,21.3599875,155.75,155.71,7.09208942]
[1762463022042,5.1505896,155.74,155.7,6.42247061]
[1762463022240,5.1505896,155.74,155.68,36.85042684]
[1762463022241,14.93941729,155.72,155.68,6.62307133]
[1762463022446,14.93941729,155.7,155.68,0.2]
[1762463022670,22.63941729,155.69,155.68,0.2]
[1762463022843,23.35941729,155.69,155.68,0.2]
[1762463024454,29.78243739,155.69,155.68,0.2]
[1762463026543,14.93941729,155.69,155.68,0.2]
[1762463026757,22.63941729,155.69,155.68,0.2]
[1762463026958,9.78882769,155.65,155.63,0.2]
[1762463027157,22.63941729,155.64,155.63,0.2]
[1762463027363,24.16255273,155.64,155.63,0.2]
[1762463027539,9.78882769,155.59,155.55,0.67]
[1762463027741,9.78882769,155.57,155.55,0.67]
[1762463028041,9.78882769,155.55,155.53,0.67]
[1762463028246,7.7,155.54,155.51,12.25072884]
[1762463028441,7.7,155.54,155.52,0.67]
[1762463028653,7.7,155.54,155.5,5.1505896]
[1762463028654,14.93941729,155.53,155.49,0.87]
[1762463028860,14.93941729,155.53,155.49,7.3012016]
[1762463029056,14.93941729,155.53,155.49,0.87]
[1762463029454,14.93941729,155.53,155.49,7.30128094]
[1762463030440,9.78882769,155.58,155.5,5.8205896]
[1762463030646,5.1505896,155.55,155.5,5.8205896]
[1762463030948,9.78882769,155.53,155.5,5.8205896]
[1762463031159,9.78882769,155.53,155.51,0.67]
[1762463032178,5.8405896,155.52,155.49,0.2]
[1762463032468,14.93941729,155.5,155.49,0.2]
[1762463032644,9.78882769,155.5,155.49,0.2]
[1762463034973,14.93941729,155.5,155.49,0.2]
[1762463035142,9.78882769,155.5,155.49,0.2]
[1762463036255,9.78882769,155.5,155.49,6.63128175]
[1762463036456,9.78882769,155.51,155.49,0.2]
[1762463036755,7.7,155.5,155.49,0.2]
[1762463037569,9.78882769,155.53,155.49,6.0005896]
[1762463037772,9.78882769,155.51,155.49,12.43176487]
[1762463038072,22.63941729,155.5,155.49,0.2]
[1762463038673,17.48882769,155.5,155.49,0.2]
[1762463040568,29.76028545,155.5,155.49,0.2]
[1762463041675,9.78882769,155.43,155.38,11.58634114]
[1762463041849,9.78882769,155.41,155.4,6.43500643]
[1762463042056,7.72,155.41,155.4,5.1505896]
[1762463042251,7.72,155.41,155.4,0.65]
[1762463042474,7.72,155.41,155.39,6.43531367]
[1762463042678,7.72,155.41,155.4,0.65]
[1762463043886,7.72,155.41,155.33,0.65]
[1762463044065,7.72,155.41,155.31,5.1505896]
[1762463044066,14.93941729,155.36,155.31,5.1505896]
[1762463044264,23.46400019,155.36,155.31,5.1505896]
[1762463044779,18.31341059,155.36,155.32,0.65]
[1762463045079,23.46400019,155.36,155.32,0.65]
[1762463045287,17.50882769,155.36,155.35,0.85]
[1762463045581,9.78882769,155.38,155.35,6.0005896]
[1762463045763,7.72,155.37,155.36,5.8005896]
[1762463046081,7.72,155.37,155.36,12.23725283]
[1762463048181,7.72,155.37,155.36,7.08666323]
[1762463048378,7.72,155.37,155.36,12.23725283]
[1762463048587,7.72,155.38,155.36,12.23725283]
[1762463048790,7.72,155.38,155.37,5.8005896]
[1762463049086,9.78882769,155.37,155.35,0.2]
[1762463049261,14.93941729,155.36,155.35,0.2]
[1762463049462,15.62941729,155.36,155.35,0.2]
[1762463049657,22.06608052,155.36,155.35,0.2]
[1762463049879,10.59341059,155.36,155.35,0.2]
[1762463050066,22.87066342,155.36,155.35,0.2]
[1762463050704,9.78882769,155.36,155.35,0.2]
[1762463050904,17.50882769,155.36,155.35,6.0005896]
[1762463051584,17.50882769,155.36,155.35,0.2]
[1762463052879,22.87066342,155.36,155.35,0.2]
[1762463053098,30.59066342,155.36,155.35,0.2]
[1762463053785,18.19882769,155.36,155.35,0.2]
[1762463053985,17.50882769,155.36,155.35,0.2]
[1762463054989,23.34941729,155.36,155.35,0.2]
[1762463055381,29.78608052,155.36,155.35,0.2]
[1762463055706,51.18266342,155.36,155.35,0.2]
[1762463057282,43.46266342,155.36,155.35,0.2]
[1762463057581,51.18266342,155.36,155.35,0.2]
[1762463057779,31.07082769,155.36,155.35,0.2]
[1762463057991,38.79082769,155.36,155.35,0.2]
[1762463058708,50.37808052,155.36,155.35,0.2]
[1762463058886,51.18266342,155.36,155.35,0.2]
[1762463059285,44.74600019,155.36,155.35,0.2]
[1762463059502,44.05600019,155.36,155.35,0.2]
[1762463059690,50.49266342,155.36,155.35,0.2]
[1762463060596,42.77266342,155.36,155.35,0.2]
[1762463060906,50.49266342,155.36,155.35,0.2]
[1762463061314,9.78882769,155.32,155.25,0.65]
[1762463061507,20.592,155.33,155.3,5.1505896]
[1762463061711,9.78882769,155.31,155.3,5.1505896]
[1762463061919,9.78882769,155.31,155.29,5.1505896]
[1762463062107,17.50882769,155.3,155.29,5.1505896]
[1762463062410,17.50882769,155.3,155.29,5.8305896]
[1762463062708,9.78882769,155.29,155.26,0.68]
[1762463062896,7.72,155.3,155.26,0.68]
[1762463062897,9.78882769,155.27,155.26,0.68]
[1762463063094,9.78882769,155.27,155.24,5.1505896]
[1762463063300,9.78882769,155.25,155.24,12.27222835]
[1762463063603,1.99999999,155.34,155.24,11.59222835]
[1762463063905,9.78882769,155.29,155.26,5.1505896]
[1762463064085,9.78882769,155.27,155.25,6.44113828]
[1762463064289,9.78882769,155.27,155.26,5.1505896]
[1762463064798,9.78882769,155.27,155.26,5.8305896]
[1762463065198,7.72,155.29,155.26,5.8305896]
[1762463065412,7.72,155.29,155.28,5.1505896]
[1762463065788,7.72,155.29,155.28,11.59056899]
[1762463066003,7.72,155.29,155.28,12.27056899]
[1762463066600,17.50882769,155.29,155.26,5.1505896]
[1762463066805,17.50882769,155.29,155.26,5.8305896]
[1762463067189,7.72,155.29,155.28,5.1505896]
[1762463067602,7.72,155.29,155.28,5.8305896]
[1762463067923,7.72,155.29,155.28,12.27056899]
[1762463068498,7.72,155.29,155.28,5.1505896]
[1762463068699,17.50882769,155.29,155.28,5.1505896]
[1762463068906,9.78882769,155.28,155.27,5.1505896]
[1762463069105,7.72,155.29,155.28,0.68]
[1762463069468,9.78882769,155.28,155.27,5.8305896]
[1762463069794,7.72,155.29,155.28,6.43997939]
[1762463070002,6.43653756,155.37,155.28,12.27056899]
[1762463070225,5.7405896,155.41,155.36,5.1505896]
[1762463070408,12.8705896,155.4,155.35,5.1505896]
[1762463070609,30.38082769,155.39,155.35,5.1505896]
[1762463070808,20.592,155.39,155.35,5.1505896]
[1762463071207,9.78882769,155.38,155.35,5.1505896]
[1762463071408,9.78882769,155.36,155.34,5.1505896]
[1762463073603,9.78882769,155.36,155.35,5.1505896]
[1762463073806,9.78882769,155.42,155.35,5.8305896]
[1762463074025,9.78882769,155.42,155.34,11.5880105]
[1762463074026,5.1505896,155.45,155.36,0.68]
[1762463074216,9.78882769,155.43,155.39,5.1505896]
[1762463074436,5.95486189,155.42,155.37,5.1505896]
[1762463074633,9.78882769,155.4,155.38,5.1505896]
[1762463074808,9.78882769,155.4,155.39,5.1505896]
[1762463075006,7.72,155.4,155.37,5.8305896]
[1762463075710,9.78882769,155.43,155.39,5.1505896]
[1762463075917,7.72,155.42,155.39,5.1505896]
[1762463076311,7.72,155.42,155.39,8.13120255]
[1762463076915,7.72,155.42,155.41,8.13120255]
[1762463077223,17.50882769,155.42,155.41,8.13120255]
[1762463077425,17.50882769,155.42,155.41,8.79120255]
[1762463077626,7.72,155.42,155.41,8.79120255]
[1762463078144,7.72,155.44,155.41,8.79120255]
[1762463078312,17.50882769,155.44,155.43,8.13120255]
[1762463078908,17.50882769,155.44,155.43,14.56496694]
[1762463079744,7.72,155.44,155.43,15.22496694]
[1762463079947,7.72,155.44,155.43,8.79120255]
[1762463080247,7.72,155.44,155.42,8.13120255]
[1762463080416,7.72,155.44,155.42,15.22502577]
[1762463081347,7.72,155.44,155.42,8.13120255]